[Event "Titled Tuesday Blitz May 18 2021"]
[White "Davtyan, Artur"]
[Black "Grandelius, Nils"]
[WhiteFideId "13308327"]
[BlackFideId "1710400"]
[WhiteElo "2311"]
[BlackElo "2651"]
[Result "1-0"]
[Round "09"]
[TimeControl "180+1"]
[Date "2021.05.18"]
[WhiteClock "0:00:12"]
[BlackClock "0:00:05"]

1. d4 {[%clk 0:03:00]}  d5 {[%clk 0:02:40]} 2. Nf3 {[%clk 0:03:00]}  e6 {[%clk 0:02:39]} 3. c4 {[%clk 0:03:00]}  a6 {[%clk 0:02:38]} 4. c5 {[%clk 0:02:58]}  b6 {[%clk 0:02:38]} 5. cxb6 {[%clk 0:02:58]}  c5 {[%clk 0:02:39]} 6. Nc3 {[%clk 0:02:54]}  Nd7 {[%clk 0:02:20]} 7. e4 {[%clk 0:02:52]}  dxe4 {[%clk 0:02:19]} 8. Nxe4 {[%clk 0:02:50]}  Qxb6 {[%clk 0:02:15]} 9. Bd3 {[%clk 0:02:46]}  Ngf6 {[%clk 0:02:07]} 10. O-O {[%clk 0:02:45]}  Bb7 {[%clk 0:02:04]} 11. Nxf6+ {[%clk 0:02:34]}  gxf6 {[%clk 0:01:59]} 12. Be3 {[%clk 0:02:25]}  cxd4 {[%clk 0:01:57]} 13. Bxd4 {[%clk 0:02:04]}  Bc5 {[%clk 0:01:57]} 14. Bxc5 {[%clk 0:01:56]}  Nxc5 {[%clk 0:01:57]} 15. Be2 {[%clk 0:01:56]}  Rd8 {[%clk 0:01:54]} 16. Qc1 {[%clk 0:01:56]}  Rg8 {[%clk 0:01:43]} 17. Qe3 {[%clk 0:01:53]}  Nd7 {[%clk 0:01:38]} 18. Qxb6 {[%clk 0:01:43]}  Nxb6 {[%clk 0:01:39]} 19. Rfd1 {[%clk 0:01:30]}  Nd5 {[%clk 0:01:37]} 20. g3 {[%clk 0:01:25]}  Nf4 {[%clk 0:01:00]} 21. Rxd8+ {[%clk 0:01:26]}  Kxd8 {[%clk 0:01:01]} 22. Kf1 {[%clk 0:01:27]}  Nxe2 {[%clk 0:01:01]} 23. Kxe2 {[%clk 0:01:28]}  Rg4 {[%clk 0:00:57]} 24. Rd1+ {[%clk 0:01:22]}  Kc7 {[%clk 0:00:55]} 25. Nd4 {[%clk 0:01:12]}  Re4+ {[%clk 0:00:53]} 26. Kf1 {[%clk 0:01:12]}  Re5 {[%clk 0:00:51]} 27. b3 {[%clk 0:00:55]}  Rc5 {[%clk 0:00:44]} 28. Ke2 {[%clk 0:00:55]}  Be4 {[%clk 0:00:37]} 29. Ke3 {[%clk 0:00:53]}  Bg6 {[%clk 0:00:38]} 30. f4 {[%clk 0:00:39]}  e5 {[%clk 0:00:34]} 31. Ne2 {[%clk 0:00:37]}  Bh5 {[%clk 0:00:30]} 32. Rc1 {[%clk 0:00:38]}  Kc6 {[%clk 0:00:19]} 33. Rxc5+ {[%clk 0:00:33]}  Kxc5 {[%clk 0:00:20]} 34. Nc3 {[%clk 0:00:33]}  Bg6 {[%clk 0:00:18]} 35. a3 {[%clk 0:00:32]}  Bf5 {[%clk 0:00:17]} 36. Ne4+ {[%clk 0:00:27]}  Kc6 {[%clk 0:00:09]} 37. Nxf6 {[%clk 0:00:26]}  exf4+ {[%clk 0:00:10]} 38. gxf4 {[%clk 0:00:24]}  Be6 {[%clk 0:00:08]} 39. b4 {[%clk 0:00:21]}  h6 {[%clk 0:00:09]} 40. Kd4 {[%clk 0:00:20]}  Kb5 {[%clk 0:00:09]} 41. Kc3 {[%clk 0:00:20]}  Ka4 {[%clk 0:00:10]} 42. Kb2 {[%clk 0:00:20]}  Kb5 {[%clk 0:00:10]} 43. Ne4 {[%clk 0:00:17]}  Kc4 {[%clk 0:00:10]} 44. f5 {[%clk 0:00:17]}  Bd5 {[%clk 0:00:05]} 45. Nf6 {[%clk 0:00:17]}  Bc6 {[%clk 0:00:03]} 46. Ng8 {[%clk 0:00:17]}  h5 {[%clk 0:00:03]} 47. Nf6 {[%clk 0:00:17]}  h4 {[%clk 0:00:03]} 48. Ng4 {[%clk 0:00:17]}  Kd4 {[%clk 0:00:03]} 49. f6 {[%clk 0:00:14]}  Bd7 {[%clk 0:00:02]} 50. Nh6 {[%clk 0:00:14]}  Be6 {[%clk 0:00:03]} 51. a4 {[%clk 0:00:14]}  Kc4 {[%clk 0:00:03]} 52. Ka3 {[%clk 0:00:14]}  Kd4 {[%clk 0:00:02]} 53. Ng8 {[%clk 0:00:13]}  Ke5 {[%clk 0:00:02]} 54. b5 {[%clk 0:00:14]}  axb5 {[%clk 0:00:02]} 55. a5 {[%clk 0:00:14]}  Bd5 {[%clk 0:00:02]} 56. Kb4 {[%clk 0:00:15]}  Bc4 {[%clk 0:00:02]} 57. Kc5 {[%clk 0:00:15]}  Be2 {[%clk 0:00:02]} 58. a6 {[%clk 0:00:13]}  b4 {[%clk 0:00:03]} 59. a7 {[%clk 0:00:13]}  Bf3 {[%clk 0:00:03]} 60. Kxb4 {[%clk 0:00:13]}  Kf5 {[%clk 0:00:04]} 61. Kc5 {[%clk 0:00:13]}  Kg6 {[%clk 0:00:04]} 62. Ne7+ {[%clk 0:00:12]}  Kxf6 {[%clk 0:00:05]} 63. Nd5+ {[%clk 0:00:12]}  Ke5 {[%clk 0:00:05]} 64. a8=Q {[%clk 0:00:12]} 1-0


[Site "https://www.chess.com"]

[Event "Titled Tuesday Blitz May 18 2021"]
[White "Dubov, Daniil"]
[Black "Triapishko, Alexandr"]
[WhiteFideId "24126055"]
[BlackFideId "14122286"]
[WhiteElo "2722"]
[BlackElo "2490"]
[Result "1-0"]
[Round "09"]
[TimeControl "180+1"]
[Date "2021.05.18"]
[WhiteClock "0:00:07"]
[BlackClock "0:00:01"]

1. e4 {[%clk 0:03:00]}  c6 {[%clk 0:02:43]} 2. d4 {[%clk 0:03:00]}  d5 {[%clk 0:02:44]} 3. e5 {[%clk 0:03:00]}  Bf5 {[%clk 0:02:44]} 4. Nf3 {[%clk 0:03:00]}  e6 {[%clk 0:02:44]} 5. Be2 {[%clk 0:03:01]}  Ne7 {[%clk 0:02:43]} 6. Nbd2 {[%clk 0:02:58]}  c5 {[%clk 0:02:39]} 7. dxc5 {[%clk 0:02:57]}  Nec6 {[%clk 0:02:32]} 8. Nb3 {[%clk 0:02:52]}  Nd7 {[%clk 0:02:31]} 9. Be3 {[%clk 0:02:49]}  Be7 {[%clk 0:01:27]} 10. O-O {[%clk 0:02:48]}  Bg4 {[%clk 0:01:15]} 11. Nfd4 {[%clk 0:02:34]}  Bxe2 {[%clk 0:01:13]} 12. Qxe2 {[%clk 0:02:35]}  Ncxe5 {[%clk 0:00:59]} 13. Bf4 {[%clk 0:02:21]}  Ng6 {[%clk 0:00:50]} 14. Bg3 {[%clk 0:02:19]}  Rc8 {[%clk 0:00:39]} 15. Nb5 {[%clk 0:02:08]}  O-O {[%clk 0:00:27]} 16. Nd6 {[%clk 0:02:01]}  Bxd6 {[%clk 0:00:18]} 17. Bxd6 {[%clk 0:02:02]}  Re8 {[%clk 0:00:18]} 18. c4 {[%clk 0:01:49]}  b6 {[%clk 0:00:15]} 19. cxb6 {[%clk 0:01:28]}  Nxb6 {[%clk 0:00:13]} 20. c5 {[%clk 0:01:27]}  Nc4 {[%clk 0:00:13]} 21. Bg3 {[%clk 0:01:27]}  a5 {[%clk 0:00:11]} 22. Rac1 {[%clk 0:01:17]}  a4 {[%clk 0:00:10]} 23. Nd4 {[%clk 0:01:17]}  e5 {[%clk 0:00:07]} 24. Nf5 {[%clk 0:01:14]}  Qf6 {[%clk 0:00:05]} 25. Ne3 {[%clk 0:01:05]}  Rxc5 {[%clk 0:00:05]} 26. Nxd5 {[%clk 0:01:00]}  Rxd5 {[%clk 0:00:04]} 27. Rxc4 {[%clk 0:01:01]}  Qb6 {[%clk 0:00:02]} 28. Rxa4 {[%clk 0:00:59]}  h6 {[%clk 0:00:02]} 29. h4 {[%clk 0:00:50]}  Red8 {[%clk 0:00:02]} 30. h5 {[%clk 0:00:50]}  Ne7 {[%clk 0:00:02]} 31. Bxe5 {[%clk 0:00:45]}  Qb5 {[%clk 0:00:01]} 32. Qxb5 {[%clk 0:00:43]}  Rxb5 {[%clk 0:00:02]} 33. Re1 {[%clk 0:00:39]}  Nc6 {[%clk 0:00:02]} 34. Bc3 {[%clk 0:00:38]}  Rxh5 {[%clk 0:00:02]} 35. Rg4 {[%clk 0:00:36]}  Rg5 {[%clk 0:00:01]} 36. Rxg5 {[%clk 0:00:36]}  hxg5 {[%clk 0:00:02]} 37. g4 {[%clk 0:00:30]}  f6 {[%clk 0:00:02]} 38. Re4 {[%clk 0:00:27]}  Kf7 {[%clk 0:00:03]} 39. Rc4 {[%clk 0:00:26]}  Rc8 {[%clk 0:00:01]} 40. a4 {[%clk 0:00:25]}  Ke6 {[%clk 0:00:01]} 41. b4 {[%clk 0:00:25]}  Kd5 {[%clk 0:00:02]} 42. Rc5+ {[%clk 0:00:25]}  Kd6 {[%clk 0:00:02]} 43. Kf1 {[%clk 0:00:17]}  Re8 {[%clk 0:00:03]} 44. Rc4 {[%clk 0:00:18]}  Kd5 {[%clk 0:00:03]} 45. Rc5+ {[%clk 0:00:18]}  Kd6 {[%clk 0:00:03]} 46. Rb5 {[%clk 0:00:09]}  Re4 {[%clk 0:00:02]} 47. Rb6 {[%clk 0:00:08]}  Kc7 {[%clk 0:00:03]} 48. a5 {[%clk 0:00:08]}  Rc4 {[%clk 0:00:02]} 49. Bd2 {[%clk 0:00:07]}  Rxg4 {[%clk 0:00:01]} 50. b5 {[%clk 0:00:07]} 1-0


[Site "https://www.chess.com"]

[Event "Titled Tuesday Blitz May 18 2021"]
[White "Jobava, Baadur"]
[Black "Sasikiran, Krishnan"]
[WhiteFideId "13601520"]
[BlackFideId "5004985"]
[WhiteElo "2748"]
[BlackElo "2552"]
[Result "0-1"]
[Round "09"]
[TimeControl "180+1"]
[Date "2021.05.18"]
[WhiteClock "0:00:02"]
[BlackClock "0:00:20"]

1. d4 {[%clk 0:02:55]}  d5 {[%clk 0:02:59]} 2. c4 {[%clk 0:02:54]}  c6 {[%clk 0:02:59]} 3. Nf3 {[%clk 0:02:54]}  Nf6 {[%clk 0:02:59]} 4. Nc3 {[%clk 0:02:54]}  e6 {[%clk 0:03:00]} 5. Bg5 {[%clk 0:02:54]}  h6 {[%clk 0:03:00]} 6. Bxf6 {[%clk 0:02:54]}  Qxf6 {[%clk 0:03:00]} 7. e3 {[%clk 0:02:55]}  Nd7 {[%clk 0:03:00]} 8. Qc2 {[%clk 0:02:54]}  g6 {[%clk 0:02:54]} 9. O-O-O {[%clk 0:02:53]}  Bg7 {[%clk 0:02:52]} 10. Kb1 {[%clk 0:02:53]}  O-O {[%clk 0:02:48]} 11. h4 {[%clk 0:02:33]}  a6 {[%clk 0:02:44]} 12. cxd5 {[%clk 0:02:22]}  cxd5 {[%clk 0:02:36]} 13. Bd3 {[%clk 0:02:21]}  b5 {[%clk 0:02:36]} 14. e4 {[%clk 0:02:20]}  b4 {[%clk 0:02:32]} 15. Na4 {[%clk 0:02:17]}  dxe4 {[%clk 0:02:28]} 16. Bxe4 {[%clk 0:02:17]}  Rb8 {[%clk 0:02:28]} 17. Nc5 {[%clk 0:02:06]}  Qf4 {[%clk 0:02:09]} 18. Rhe1 {[%clk 0:01:51]}  Nf6 {[%clk 0:01:53]} 19. Ne5 {[%clk 0:01:41]}  Qxh4 {[%clk 0:01:44]} 20. Nc6 {[%clk 0:01:22]}  Qf4 {[%clk 0:01:25]} 21. Bxg6 {[%clk 0:01:06]}  fxg6 {[%clk 0:01:17]} 22. Ne7+ {[%clk 0:01:05]}  Kf7 {[%clk 0:01:16]} 23. Nd3 {[%clk 0:00:23]}  Qd6 {[%clk 0:00:56]} 24. Nxg6 {[%clk 0:00:22]}  Bb7 {[%clk 0:00:50]} 25. Nxf8 {[%clk 0:00:18]}  Rxf8 {[%clk 0:00:48]} 26. f3 {[%clk 0:00:14]}  Nd5 {[%clk 0:00:45]} 27. Ne5+ {[%clk 0:00:13]}  Kg8 {[%clk 0:00:45]} 28. Rc1 {[%clk 0:00:08]}  a5 {[%clk 0:00:42]} 29. Qg6 {[%clk 0:00:08]}  Nf4 {[%clk 0:00:40]} 30. Qg4 {[%clk 0:00:08]}  h5 {[%clk 0:00:29]} 31. Qg3 {[%clk 0:00:06]}  a4 {[%clk 0:00:27]} 32. Ng6 {[%clk 0:00:05]}  Qxd4 {[%clk 0:00:25]} 33. Rc2 {[%clk 0:00:02]}  b3 {[%clk 0:00:25]} 34. axb3 {[%clk 0:00:01]}  axb3 {[%clk 0:00:25]} 35. Rc3 {[%clk 0:00:01]}  Nxg6 {[%clk 0:00:20]} 36. Qxg6 {[%clk 0:00:02]}  Qd2 {[%clk 0:00:20]} 37. Qxe6+ {[%clk 0:00:02]}  Kh8 {[%clk 0:00:20]} 0-1


[Site "https://www.chess.com"]

[Event "Titled Tuesday Blitz May 18 2021"]
[White "Murzin, Volodar"]
[Black "Hansen, Eric"]
[WhiteFideId "44155573"]
[BlackFideId "2606771"]
[WhiteElo "2541"]
[BlackElo "2568"]
[Result "1-0"]
[Round "09"]
[TimeControl "180+1"]
[Date "2021.05.18"]
[WhiteClock "0:00:22"]
[BlackClock "0:00:19"]

1. e4 {[%clk 0:03:00]}  c6 {[%clk 0:01:51]} 2. Nf3 {[%clk 0:02:59]}  d5 {[%clk 0:01:51]} 3. exd5 {[%clk 0:03:00]}  cxd5 {[%clk 0:01:51]} 4. Ne5 {[%clk 0:03:01]}  Nc6 {[%clk 0:01:50]} 5. Bb5 {[%clk 0:02:59]}  Bd7 {[%clk 0:01:49]} 6. Bxc6 {[%clk 0:02:57]}  Bxc6 {[%clk 0:01:46]} 7. O-O {[%clk 0:02:54]}  Nf6 {[%clk 0:01:46]} 8. d4 {[%clk 0:02:51]}  e6 {[%clk 0:01:46]} 9. Bg5 {[%clk 0:02:46]}  Be7 {[%clk 0:01:46]} 10. Nd2 {[%clk 0:02:44]}  Bb5 {[%clk 0:01:41]} 11. Re1 {[%clk 0:02:42]}  O-O {[%clk 0:01:42]} 12. c3 {[%clk 0:02:42]}  h6 {[%clk 0:01:34]} 13. Bh4 {[%clk 0:02:39]}  Ne8 {[%clk 0:01:34]} 14. Bxe7 {[%clk 0:02:38]}  Qxe7 {[%clk 0:01:35]} 15. Re3 {[%clk 0:02:28]}  Nd6 {[%clk 0:01:34]} 16. Rh3 {[%clk 0:02:23]}  a5 {[%clk 0:01:32]} 17. f4 {[%clk 0:02:12]}  a4 {[%clk 0:01:25]} 18. a3 {[%clk 0:02:10]}  Be8 {[%clk 0:01:19]} 19. Qg4 {[%clk 0:02:07]}  Nf5 {[%clk 0:01:05]} 20. Re1 {[%clk 0:02:03]}  f6 {[%clk 0:01:05]} 21. Nd3 {[%clk 0:01:48]}  Qd6 {[%clk 0:00:57]} 22. Nc5 {[%clk 0:01:42]}  Bf7 {[%clk 0:00:58]} 23. Nf1 {[%clk 0:01:31]}  b6 {[%clk 0:00:42]} 24. Nd3 {[%clk 0:01:31]}  h5 {[%clk 0:00:39]} 25. Qd1 {[%clk 0:01:24]}  Bg6 {[%clk 0:00:38]} 26. Ng3 {[%clk 0:00:49]}  Nxg3 {[%clk 0:00:33]} 27. Rxg3 {[%clk 0:00:48]}  Kf7 {[%clk 0:00:21]} 28. Qf3 {[%clk 0:00:23]}  Rh8 {[%clk 0:00:19]} 29. Ne5+ {[%clk 0:00:22]} 1-0


[Site "https://www.chess.com"]

[Event "Titled Tuesday Blitz May 18 2021"]
[White "Nakamura, Hikaru"]
[Black "Pantsulaia, Levan"]
[WhiteFideId "2016192"]
[BlackFideId "13602071"]
[WhiteElo "2900"]
[BlackElo "2530"]
[Result "0-1"]
[Round "09"]
[TimeControl "180+1"]
[Date "2021.05.18"]
[WhiteClock "0:00:21"]
[BlackClock "0:00:48"]

1. Nf3 {[%clk 0:03:00]}  c5 {[%clk 0:02:59]} 2. e4 {[%clk 0:03:00]}  e6 {[%clk 0:02:59]} 3. d4 {[%clk 0:03:00]}  cxd4 {[%clk 0:02:59]} 4. Nxd4 {[%clk 0:03:01]}  a6 {[%clk 0:03:00]} 5. Bd3 {[%clk 0:03:00]}  Bc5 {[%clk 0:02:50]} 6. Nb3 {[%clk 0:03:00]}  Ba7 {[%clk 0:02:50]} 7. Qe2 {[%clk 0:02:59]}  d6 {[%clk 0:02:48]} 8. Be3 {[%clk 0:03:00]}  Nf6 {[%clk 0:02:48]} 9. O-O {[%clk 0:02:58]}  Nc6 {[%clk 0:02:48]} 10. Nc3 {[%clk 0:02:58]}  O-O {[%clk 0:02:46]} 11. a4 {[%clk 0:02:54]}  Bxe3 {[%clk 0:02:38]} 12. Qxe3 {[%clk 0:02:53]}  d5 {[%clk 0:02:38]} 13. exd5 {[%clk 0:02:50]}  exd5 {[%clk 0:02:37]} 14. Ne2 {[%clk 0:02:37]}  Re8 {[%clk 0:02:35]} 15. Qf4 {[%clk 0:02:36]}  Ne5 {[%clk 0:02:30]} 16. Ned4 {[%clk 0:02:32]}  Nc4 {[%clk 0:02:27]} 17. Qc1 {[%clk 0:02:24]}  Qd6 {[%clk 0:02:16]} 18. c3 {[%clk 0:01:57]}  Ng4 {[%clk 0:02:07]} 19. f4 {[%clk 0:01:55]}  Bd7 {[%clk 0:01:54]} 20. Rf3 {[%clk 0:01:48]}  h6 {[%clk 0:01:51]} 21. h3 {[%clk 0:01:44]}  Nf6 {[%clk 0:01:50]} 22. Nd2 {[%clk 0:01:40]}  Rac8 {[%clk 0:01:47]} 23. Nxc4 {[%clk 0:01:38]}  dxc4 {[%clk 0:01:48]} 24. Bc2 {[%clk 0:01:39]}  Bc6 {[%clk 0:01:46]} 25. Rf2 {[%clk 0:01:32]}  Be4 {[%clk 0:01:42]} 26. Qd2 {[%clk 0:01:30]}  Bxc2 {[%clk 0:01:40]} 27. Qxc2 {[%clk 0:01:31]}  Ne4 {[%clk 0:01:40]} 28. Rf3 {[%clk 0:01:30]}  Nc5 {[%clk 0:01:38]} 29. Nf5 {[%clk 0:01:24]}  Qf6 {[%clk 0:01:22]} 30. Nd4 {[%clk 0:01:14]}  Nd3 {[%clk 0:01:20]} 31. Qd2 {[%clk 0:01:14]}  Rcd8 {[%clk 0:01:19]} 32. Raf1 {[%clk 0:01:12]}  Re4 {[%clk 0:01:12]} 33. b3 {[%clk 0:01:06]}  Nc5 {[%clk 0:01:04]} 34. bxc4 {[%clk 0:01:03]}  Nxa4 {[%clk 0:01:02]} 35. c5 {[%clk 0:00:37]}  Nxc5 {[%clk 0:00:59]} 36. Qc2 {[%clk 0:00:36]}  b5 {[%clk 0:00:56]} 37. Kh2 {[%clk 0:00:36]}  Ree8 {[%clk 0:00:51]} 38. Qa2 {[%clk 0:00:36]}  Ne4 {[%clk 0:00:50]} 39. Qa5 {[%clk 0:00:21]}  Nd2 {[%clk 0:00:48]} 0-1


[Site "https://www.chess.com"]

[Event "Titled Tuesday Blitz May 18 2021"]
[White "Sanal, Vahap"]
[Black "Annaberdiyev, Babageldi"]
[WhiteFideId "6300545"]
[BlackFideId "14000385"]
[WhiteElo "2507"]
[BlackElo "2332"]
[Result "1-0"]
[Round "09"]
[TimeControl "180+1"]
[Date "2021.05.18"]
[WhiteClock "0:00:09"]
[BlackClock "0:00:12"]

1. e4 {[%clk 0:02:46]}  e6 {[%clk 0:02:59]} 2. d4 {[%clk 0:02:40]}  d5 {[%clk 0:02:59]} 3. Nd2 {[%clk 0:02:39]}  Nf6 {[%clk 0:02:58]} 4. e5 {[%clk 0:02:39]}  Nfd7 {[%clk 0:02:57]} 5. Bd3 {[%clk 0:02:38]}  c5 {[%clk 0:02:57]} 6. c3 {[%clk 0:02:38]}  Nc6 {[%clk 0:02:58]} 7. Ne2 {[%clk 0:02:37]}  Qb6 {[%clk 0:02:59]} 8. Nf3 {[%clk 0:02:36]}  cxd4 {[%clk 0:02:59]} 9. cxd4 {[%clk 0:02:36]}  f6 {[%clk 0:03:00]} 10. exf6 {[%clk 0:02:35]}  Nxf6 {[%clk 0:03:00]} 11. O-O {[%clk 0:02:36]}  Bd6 {[%clk 0:03:01]} 12. Nc3 {[%clk 0:02:35]}  O-O {[%clk 0:02:47]} 13. Be3 {[%clk 0:02:34]}  Bd7 {[%clk 0:02:33]} 14. a3 {[%clk 0:02:25]}  Be8 {[%clk 0:02:30]} 15. Ne5 {[%clk 0:02:11]}  Bxe5 {[%clk 0:02:24]} 16. dxe5 {[%clk 0:02:10]}  d4 {[%clk 0:02:25]} 17. exf6 {[%clk 0:02:07]}  dxe3 {[%clk 0:02:23]} 18. fxg7 {[%clk 0:02:04]}  exf2+ {[%clk 0:02:19]} 19. Kh1 {[%clk 0:02:04]}  Kxg7 {[%clk 0:02:19]} 20. Qg4+ {[%clk 0:02:00]}  Bg6 {[%clk 0:02:19]} 21. Bxg6 {[%clk 0:01:54]}  hxg6 {[%clk 0:02:20]} 22. Ne4 {[%clk 0:01:43]}  Rf5 {[%clk 0:02:10]} 23. Ng3 {[%clk 0:01:39]}  Rd5 {[%clk 0:01:48]} 24. Qxe6 {[%clk 0:01:31]}  Rad8 {[%clk 0:01:48]} 25. Ne4 {[%clk 0:01:30]}  Qxb2 {[%clk 0:01:25]} 26. Nxf2 {[%clk 0:01:11]}  Qf6 {[%clk 0:01:14]} 27. Qxf6+ {[%clk 0:00:57]}  Kxf6 {[%clk 0:01:15]} 28. Nh3+ {[%clk 0:00:57]}  Kg7 {[%clk 0:01:11]} 29. Nf4 {[%clk 0:00:57]}  Re5 {[%clk 0:01:06]} 30. h3 {[%clk 0:00:47]}  Rd4 {[%clk 0:01:00]} 31. Kh2 {[%clk 0:00:46]}  g5 {[%clk 0:00:50]} 32. Nh5+ {[%clk 0:00:44]}  Kg6 {[%clk 0:00:49]} 33. Rf6+ {[%clk 0:00:42]}  Kxh5 {[%clk 0:00:35]} 34. g4+ {[%clk 0:00:42]}  Rxg4 {[%clk 0:00:36]} 35. hxg4+ {[%clk 0:00:43]}  Kxg4 {[%clk 0:00:36]} 36. Rg1+ {[%clk 0:00:43]}  Kh5 {[%clk 0:00:32]} 37. Rb1 {[%clk 0:00:43]}  Na5 {[%clk 0:00:19]} 38. a4 {[%clk 0:00:38]}  b6 {[%clk 0:00:18]} 39. Rc1 {[%clk 0:00:29]}  Re4 {[%clk 0:00:14]} 40. Kg3 {[%clk 0:00:28]}  Re3+ {[%clk 0:00:14]} 41. Kg2 {[%clk 0:00:28]}  Ra3 {[%clk 0:00:14]} 42. Rc7 {[%clk 0:00:25]}  Ra2+ {[%clk 0:00:13]} 43. Kf3 {[%clk 0:00:25]}  Ra3+ {[%clk 0:00:14]} 44. Kf2 {[%clk 0:00:25]}  Ra2+ {[%clk 0:00:14]} 45. Ke1 {[%clk 0:00:25]}  Ra1+ {[%clk 0:00:14]} 46. Ke2 {[%clk 0:00:26]}  Rxa4 {[%clk 0:00:14]} 47. Rxa7 {[%clk 0:00:25]}  Rf4 {[%clk 0:00:14]} 48. Rxb6 {[%clk 0:00:24]}  Nc4 {[%clk 0:00:13]} 49. Rb8 {[%clk 0:00:24]}  Ne5 {[%clk 0:00:13]} 50. Ra5 {[%clk 0:00:21]}  Re4+ {[%clk 0:00:13]} 51. Kf1 {[%clk 0:00:21]}  Kg4 {[%clk 0:00:14]} 52. Rb3 {[%clk 0:00:19]}  Kf4 {[%clk 0:00:14]} 53. Ra8 {[%clk 0:00:18]}  Kg4 {[%clk 0:00:12]} 54. Rg8 {[%clk 0:00:18]}  Rf4+ {[%clk 0:00:12]} 55. Kg2 {[%clk 0:00:18]}  Nf3 {[%clk 0:00:12]} 56. Rb5 {[%clk 0:00:16]}  Nh4+ {[%clk 0:00:13]} 57. Kg1 {[%clk 0:00:16]}  Nf5 {[%clk 0:00:13]} 58. Ra5 {[%clk 0:00:16]}  Kh4 {[%clk 0:00:12]} 59. Ra7 {[%clk 0:00:15]}  Kg4 {[%clk 0:00:13]} 60. Ra2 {[%clk 0:00:15]}  Nh4 {[%clk 0:00:12]} 61. Ra3 {[%clk 0:00:15]}  Nf3+ {[%clk 0:00:11]} 62. Kg2 {[%clk 0:00:15]}  Nh4+ {[%clk 0:00:12]} 63. Kh2 {[%clk 0:00:16]}  Rf2+ {[%clk 0:00:11]} 64. Kg1 {[%clk 0:00:15]}  Rf3 {[%clk 0:00:12]} 65. Ra5 {[%clk 0:00:15]}  Rf5 {[%clk 0:00:12]} 66. Ra7 {[%clk 0:00:14]}  Nf3+ {[%clk 0:00:11]} 67. Kh1 {[%clk 0:00:14]}  Nh4 {[%clk 0:00:12]} 68. Ra4+ {[%clk 0:00:14]}  Rf4 {[%clk 0:00:12]} 69. Ra6 {[%clk 0:00:14]}  Rf5 {[%clk 0:00:12]} 70. Rc8 {[%clk 0:00:11]}  Rf1+ {[%clk 0:00:12]} 71. Kh2 {[%clk 0:00:11]}  Rf2+ {[%clk 0:00:13]} 72. Kg1 {[%clk 0:00:11]}  Rf4 {[%clk 0:00:13]} 73. Ra3 {[%clk 0:00:12]}  Nf3+ {[%clk 0:00:14]} 74. Kh1 {[%clk 0:00:12]}  Nh4 {[%clk 0:00:14]} 75. Rc1 {[%clk 0:00:12]}  Nf3 {[%clk 0:00:14]} 76. Rd1 {[%clk 0:00:12]}  Nh4 {[%clk 0:00:14]} 77. Rg1+ {[%clk 0:00:12]}  Kh5 {[%clk 0:00:15]} 78. Ra8 {[%clk 0:00:12]}  Rf6 {[%clk 0:00:15]} 79. Rg8 {[%clk 0:00:11]}  Rg6 {[%clk 0:00:15]} 80. Rf8 {[%clk 0:00:10]}  Rd6 {[%clk 0:00:14]} 81. Rg3 {[%clk 0:00:08]}  Rd1+ {[%clk 0:00:14]} 82. Kh2 {[%clk 0:00:09]}  Rd2+ {[%clk 0:00:14]} 83. Kh3 {[%clk 0:00:09]}  Rd5 {[%clk 0:00:12]} 84. Rh8+ {[%clk 0:00:09]}  Kg6 {[%clk 0:00:12]} 85. Rxh4 {[%clk 0:00:09]} 1-0


[Site "https://www.chess.com"]